bitfinex/quotes_ETHUSD_20240828
["timestamp","ask_amount","ask_price","bid_price","bid_amount"]
[1724823853095,4.45016525,2482.3,2482.1,0.27754181]
[1724823853285,8.47882525,2482.3,2482.1,0.04011074]
[1724823853483,4.45016525,2482.3,2482.1,0.04011074]
[1724823854059,0.42164525,2482.3,2482.1,0.04011074]
[1724823855183,0.42164525,2482.3,2482.1,0.12067815]
[1724823855390,0.42164525,2482.3,2482.1,0.36616597]
[1724823855597,4.0282,2482.5,2482.1,0.36616597]
[1724823855773,4.0282,2482.5,2482.1,0.12067815]
[1724823855774,4.44978559,2482.5,2482.1,0.12067815]
[1724823856508,0.42158559,2482.5,2482.1,0.12067815]
[1724823857212,0.42158559,2482.5,2482.1,4.14949815]
[1724823857507,0.42158559,2482.5,2482.1,0.12067815]
[1724823859374,0.42158559,2482.5,2482.2,2.4454]
[1724823859585,0.42158559,2482.5,2482.3,0.03941977]
[1724823859586,4.44980559,2482.5,2482.3,0.03941977]
[1724823859820,4.44980559,2482.5,2482.2,2.4454]
[1724823859991,4.44980559,2482.5,2482.3,0.03941977]
[1724823860313,4.44980559,2482.5,2482.2,2.4454]
[1724823860515,0.42158559,2482.5,2482.4,0.03941977]
[1724823860672,0.42158559,2482.5,2482.2,2.4454]
[1724823861073,0.42158559,2482.5,2482.3,0.039357]
[1724823861584,0.42158559,2482.5,2482.4,0.039357]
[1724823863326,0.42158559,2482.5,2482.4,4.067707]
[1724823863478,11.14698778,2483.1,2482.4,5.21048958]
[1724823863479,4.0273,2483.1,2482.4,5.21048958]
[1724823863677,0.42152704,2483.0,2482.7,4.02786]
[1724823863877,0.42152704,2483.0,2482.7,4.10840689]
[1724823864177,0.42148976,2483.2,2482.9,2.4537]
[1724823864376,0.42148976,2483.2,2483.0,0.03856601]
[1724823864787,0.42148976,2483.2,2483.0,0.11910719]
[1724823865911,0.42148976,2483.2,2483.0,4.14647719]
[1724823866118,0.42148976,2483.2,2483.1,4.68723772]
[1724823866291,9.42101108,2483.9,2483.3,4.02688]
[1724823866493,0.42144691,2483.8,2483.3,8.05369]
[1724823866864,0.42144691,2483.8,2483.4,4.06524601]
[1724823867001,0.42144691,2483.8,2483.4,4.14576874]
[1724823867176,0.42144691,2483.8,2483.5,4.02654]
[1724823867580,0.42144691,2483.8,2483.6,0.03856601]
[1724823868200,0.42144691,2483.8,2483.6,0.11908655]
[1724823868518,0.42144691,2483.8,2483.7,2.2584]
[1724823868992,0.42144691,2483.8,2483.7,2.29696601]
[1724823870218,0.42144691,2483.8,2483.7,6.32321601]
[1724823870427,0.42144691,2483.8,2483.7,2.37747828]
[1724823871616,0.42144691,2483.8,2483.7,6.40372828]
[1724823871930,4.02535,2484.3,2483.7,6.18975828]
[1724823872229,0.42138533,2484.2,2483.7,6.10924601]
[1724823872430,0.42138533,2484.2,2483.8,4.14193194]
[1724823872606,0.42138533,2484.2,2482.4,0.05]
[1724823872931,0.42138533,2484.2,2483.5,4.02646]
[1724823873133,0.42138533,2484.2,2483.5,4.02647]
[1724823873291,0.42138533,2484.2,2483.3,4.02676]
[1724823873494,0.42138533,2484.2,2483.2,4.02702]
[1724823874104,0.42138533,2484.2,2483.2,8.05397]
[1724823874307,0.42138533,2484.2,2483.3,4.02688]
[1724823874503,0.42138533,2484.2,2483.3,4.43108]
[1724823874934,0.42138533,2484.2,2483.4,0.55]
[1724823875105,0.42138533,2484.2,2483.5,0.498108]
[1724823875299,0.42138533,2484.2,2483.6,2.3558]
[1724823876832,4.02579,2484.0,2483.2,2.3575]
[1724823877409,8.05171,2484.0,2483.2,2.3575]
[1724823877728,8.05171,2484.0,2483.2,2.995988]
[1724823877729,5.42266587,2484.0,2483.2,2.995988]
[1724823878559,4.02607,2483.9,2483.2,2.995988]
[1724823878848,4.02607,2483.9,2483.2,2.3575]
[1724823880137,4.02653,2483.6,2483.2,2.3575]
[1724823880305,4.1268771,2483.8,2483.2,2.3575]
[1724823880508,4.43905771,2483.7,2483.2,2.3575]
[1724823880710,4.02642,2483.6,2483.2,2.3575]
[1724823882411,4.02683,2483.4,2482.7,2.385]
[1724823882611,4.02731,2483.1,2482.7,2.385]
[1724823882949,4.02709,2483.2,2482.7,2.385]
[1724823883147,4.02758,2482.9,2482.7,2.385]
[1724823883352,4.02741,2483.0,2482.7,2.385]
[1724823884143,4.02736,2483.1,2482.7,2.385]
[1724823884310,8.05472,2483.1,2482.7,2.385]
[1724823885548,8.05467,2483.1,2482.7,2.385]
[1724823886126,4.02741,2483.0,2482.7,2.385]
[1724823886569,4.02731,2483.1,2482.7,2.385]
[1724823886764,4.0274,2483.0,2482.7,2.385]
[1724823886955,4.02731,2483.1,2482.7,2.385]
[1724823887155,8.05469,2483.1,2482.7,2.385]
[1724823887355,4.02748,2483.0,2482.7,2.385]
[1724823887540,4.02771,2482.8,2482.7,2.385]
[1724823887749,4.02771,2482.8,2482.0,6.9667]
[1724823887750,4.430481,2482.8,2482.1,2.4188]
[1724823887950,4.02771,2482.8,2482.1,2.4188]
[1724823888577,8.05551,2482.8,2482.1,2.4188]
[1724823889271,4.02771,2482.8,2482.1,2.4188]
[1724823889476,8.05553,2482.8,2482.2,0.55]
[1724823889770,8.05553,2482.8,2482.2,0.84688]
[1724823889945,4.02771,2482.8,2482.2,0.84688]
[1724823890138,4.02796,2482.7,2482.2,0.84688]
[1724823890532,8.05632,2482.6,2482.1,2.4188]
[1724823891165,8.05626,2482.6,2482.1,2.4188]
[1724823891363,4.02813,2482.6,2482.1,2.4188]
[1724823892280,4.02777,2482.8,2482.2,0.24188]
[1724823893479,8.05558,2482.8,2482.2,0.24188]
[1724823893652,4.02777,2482.8,2482.2,0.24188]
[1724823894179,4.02777,2482.8,2482.3,2.3886]
[1724823895676,8.055,2483.0,2482.3,2.3886]
[1724823895883,4.02757,2482.9,2482.3,2.651648]
[1724823897548,8.05497,2483.0,2482.3,2.651648]
[1724823897738,4.02748,2483.0,2482.3,2.651648]
[1724823898050,4.02755,2482.9,2482.4,0.2893528]
[1724823898848,4.02771,2482.8,2482.4,0.2893528]
[1724823899044,4.02771,2482.8,2482.3,2.5735]
[1724823899457,4.02798,2482.7,2482.3,2.5735]
[1724823900188,4.02807,2482.6,2482.3,2.5735]
[1724823900350,4.02831,2482.5,2482.3,2.5735]
[1724823901955,4.02835,2482.4,2482.3,2.5735]
[1724823902380,4.0282,2482.5,2482.3,2.5735]
[1724823902698,8.05625,2482.6,2482.3,2.5735]
[1724823902855,4.02792,2482.7,2482.3,2.5735]
[1724823903056,4.4493328,2482.8,2482.3,2.5735]
[1724823903057,0.4215228,2482.8,2482.3,2.83085]
[1724823903395,4.4493228,2482.8,2482.3,2.83085]
[1724823903758,0.4215228,2482.8,2482.3,2.83085]
[1724823904291,4.4492428,2482.8,2482.3,2.83085]
[1724823905565,4.4492528,2482.8,2482.3,2.83085]
[1724823909070,0.4215228,2482.8,2482.3,2.83085]
[1724823909263,0.4215228,2482.8,2482.4,0.283085]
[1724823909489,4.4492728,2482.8,2482.4,0.283085]
[1724823909676,4.02788,2482.7,2482.3,2.5735]
[1724823910265,8.05585,2482.7,2482.3,2.5735]
[1724823910498,0.4215228,2482.8,2482.3,2.5735]
[1724823910499,4.02812,2482.6,2482.3,2.5735]
[1724823910904,4.87586528,2482.6,2482.3,2.5735]
[1724823911088,4.02835,2482.4,2482.3,0.1849]
[1724823911809,8.05662,2482.5,2482.3,0.1849]
[1724823912101,4.02829,2482.5,2482.3,0.1849]
[1724823912266,4.02828,2482.5,2482.3,0.1849]
[1724823912471,4.02809,2482.6,2482.3,0.1849]
[1724823913207,4.02824,2482.5,2482.3,0.1849]
[1724823914975,4.02824,2482.5,2482.0,3.0169]
[1724823920572,4.02824,2482.5,2482.0,3.2016]
[1724823920776,0.42153408,2482.6,2482.0,3.2016]
[1724823921013,4.02839,2482.4,2482.0,3.2016]
[1724823922282,4.02831,2482.5,2482.0,3.2016]
[1724823922480,8.05662,2482.5,2482.0,3.2016]
[1724823922701,8.05659,2482.5,2482.0,3.2016]
[1724823922907,4.02828,2482.5,2482.0,3.2016]
[1724823923338,4.02828,2482.5,2482.0,4.21843]
[1724823923835,0.37874215,2482.4,2482.0,4.21843]
[1724823924030,0.37874215,2482.3,2482.0,4.21843]
[1724823924334,0.37874215,2482.2,2482.0,4.21843]
[1724823924511,0.37874215,2482.1,2482.0,3.2016]
[1724823926595,4.0284,2482.4,2482.0,3.2016]
[1724823926817,0.37875876,2482.3,2482.0,3.2016]
[1724823927001,4.0284,2482.4,2482.0,3.2016]
[1724823927218,0.37875243,2482.3,2482.0,3.2016]
[1724823927633,0.3787438,2482.2,2482.0,3.2016]
[1724823927857,0.3787438,2482.2,2482.0,4.21843]
[1724823927997,0.37873089,2482.1,2482.0,4.21843]
[1724823928203,0.37873089,2482.1,2482.0,3.2016]
[1724823931054,0.42153408,2482.6,2482.0,3.2016]
[1724823931340,0.37874263,2482.5,2482.0,3.2016]
[1724823931503,0.37874263,2482.5,2482.1,0.32016]
[1724823931705,0.37874263,2482.4,2482.1,0.32016]
[1724823931948,0.37874263,2482.3,2482.1,0.32016]
[1724823932146,0.37870611,2482.2,2482.1,0.32016]
[1724823932926,0.37870611,2482.2,2482.1,0.87016]
[1724823933645,0.37869052,2482.2,2482.1,0.87016]
[1724823937748,0.37872292,2482.2,2482.1,0.87016]
[1724823939653,0.37871832,2482.2,2482.1,0.87016]
[1724823941145,8.47770408,2482.6,2482.1,0.87016]
[1724823941351,0.37871682,2482.5,2482.1,0.87016]
[1724823941668,8.47770408,2482.6,2482.1,0.87016]
[1724823941821,0.37872769,2482.4,2482.1,0.87016]
[1724823942021,0.37872769,2482.3,2482.1,0.87016]
[1724823942346,0.37872769,2482.2,2482.1,0.87016]
[1724823942524,4.44957408,2482.6,2482.1,0.55]
[1724823942858,0.37871808,2482.2,2482.1,0.55]
[1724823943359,0.37871808,2482.2,2482.0,3.0169]
[1724823943563,0.19401808,2482.1,2482.0,3.0169]
[1724823944434,0.19401808,2482.1,2482.0,3.31859]
[1724823944832,4.02837,2482.4,2482.0,3.31859]
[1724823945448,4.02877,2482.2,2481.7,3.5109]
[1724823945774,8.05757,2482.2,2481.7,3.1067]
[1724823945968,4.02877,2482.2,2481.7,3.1067]
[1724823946171,8.05755,2482.2,2481.7,3.45779]
[1724823946543,4.02909,2482.0,2481.7,3.1067]
[1724823947566,4.02877,2482.2,2481.7,3.1067]
[1724823947864,4.02885,2482.1,2481.7,3.1067]
[1724823948266,4.02877,2482.2,2481.7,3.1067]
[1724823948475,4.0284,2482.4,2481.8,0.55]
[1724823950334,4.02822,2482.5,2481.8,0.55]
[1724823950533,4.55033412,2482.6,2481.9,2.9106]
[1724823950534,8.47780408,2482.6,2481.9,2.9106]
[1724823950765,0.42153408,2482.6,2482.1,2.9106]
[1724823950969,0.42153408,2482.6,2482.2,0.55]
[1724823952342,4.02821,2482.5,2482.1,2.9106]
[1724823952854,4.02836,2482.4,2482.1,2.9106]
[1724823953237,4.02845,2482.4,2481.8,9.9786]
[1724823953443,4.02845,2482.4,2481.9,1.578927]
[1724823954502,4.02845,2482.4,2481.8,9.9786]
[1724823954503,4.02855,2482.3,2481.8,3.0119]
[1724823955284,4.02897,2482.1,2481.8,3.0119]
[1724823955642,0.37876643,2482.0,2481.8,3.0119]
[1724823955847,0.37876643,2481.9,2481.8,3.0119]
[1724823956876,0.37876643,2481.9,2481.8,3.344157]
[1724823957041,0.37876643,2481.9,2481.8,7.923487]
[1724823957376,0.37876643,2481.9,2481.8,8.327687]
[1724823957583,0.37876643,2481.9,2481.8,7.923487]
[1724823958582,0.37870737,2481.9,2481.8,7.923487]
[1724823960655,0.37870737,2481.9,2481.8,3.894157]
[1724823961099,4.0282,2482.5,2481.8,3.894157]
[1724823961100,8.05649,2482.5,2481.8,3.894157]
[1724823961272,4.0282,2482.5,2481.9,1.3423647]
[1724823961616,4.02839,2482.4,2481.9,0.55]
[1724823961908,0.37874307,2482.3,2481.9,0.55]
[1724823962202,0.37874307,2482.2,2481.9,0.55]
[1724823962390,0.37874307,2482.1,2481.9,0.55]
[1724823962592,0.37874307,2482.0,2481.9,0.55]
[1724823965179,0.37874307,2482.0,2481.9,0.90619]
[1724823967079,0.37874307,2482.0,2481.9,4.93536]
[1724823967978,0.42155447,2482.7,2482.4,4.02827]
[1724823968324,0.42157869,2483.3,2482.5,3.6381]
[1724823968532,0.42157869,2483.3,2482.6,8.05586]
[1724823968701,0.42157869,2483.3,2482.7,4.57781]
[1724823969393,0.42157869,2483.3,2482.8,3.0881]
[1724823969598,0.42157869,2483.3,2482.9,1.316591]
[1724823970136,0.42157869,2483.3,2482.9,5.36571417]
[1724823970297,8.05177,2484.0,2483.2,4.02696]
[1724823970498,4.02634,2483.7,2483.0,2.8487]
[1724823970699,4.02646,2483.6,2483.0,3.536299]
[1724823971032,6.85226,2483.6,2482.7,3.4739]
[1724823971198,4.02675,2483.4,2482.8,0.55]
[1724823971396,4.02675,2483.4,2482.8,1.717555]
[1724823971790,10.8788,2483.6,2482.8,1.717555]
[1724823971986,4.02646,2483.6,2482.8,1.717555]
[1724823972187,0.10066499,2483.7,2482.8,5.745145]
[1724823972384,4.02618,2483.8,2483.0,6.88806]
[1724823972632,4.02618,2483.8,2483.1,0.55]
[1724823973016,4.02625,2483.7,2483.1,0.55]
[1724823973508,4.02618,2483.8,2483.1,0.55]
[1724823973713,4.02618,2483.8,2483.2,0.743806]
[1724823973924,4.02628,2483.7,2483.2,0.743806]
[1724823974087,4.02643,2483.6,2483.1,0.55]
[1724823977198,4.02715,2483.2,2482.7,9.9207]
[1724823977396,4.02715,2483.2,2482.7,2.954]
[1724823977644,4.02692,2483.3,2482.7,2.954]
[1724823977645,4.02733,2483.1,2482.7,2.954]
[1724823977800,4.02739,2483.0,2482.5,7.77443932]
[1724823978000,4.02733,2483.1,2482.6,1.07270393]
[1724823978236,4.02691,2483.3,2482.7,2.9526]
[1724823978435,4.14979505,2483.6,2482.7,2.9526]
[1724823978641,4.02708,2483.2,2482.7,2.9526]
[1724823978997,4.02708,2483.2,2482.8,0.55]
[1724823979233,4.02708,2483.2,2482.7,2.9526]
[1724823979440,4.02732,2483.1,2482.7,2.9526]
[1724823980909,4.02708,2483.2,2482.7,2.9526]
[1724823981227,4.02722,2483.1,2482.7,2.9526]
[1724823981744,0.10067744,2483.1,2482.1,2.9501]
[1724823982045,0.90610744,2483.1,2482.1,2.9501]
[1724823982246,4.14981069,2483.0,2481.8,6.9667]
[1724823982565,4.02819,2482.5,2481.8,6.9667]
[1724823982712,4.02883,2482.2,2481.9,0.69667]
[1724823982907,8.05695,2482.4,2481.4,8.07899317]
[1724823983248,8.05695,2482.4,2481.6,4.02965]
[1724823983460,8.05692,2482.4,2481.6,4.02965]
[1724823983624,4.02845,2482.4,2481.6,4.02965]
[1724823983821,4.02811,2482.6,2481.8,4.04912317]
[1724823984056,4.02811,2482.6,2481.9,0.55]
[1724823984258,4.02853,2482.3,2481.7,0.55]
[1724823985056,4.02837,2482.4,2481.7,0.55]
[1724823985234,4.02813,2482.6,2481.8,3.0227]
[1724823985431,4.0279,2482.7,2481.9,5.339269]
[1724823985957,4.0278,2482.8,2482.1,2.9016]
[1724823985958,0.42163143,2482.6,2482.1,2.9016]
[1724823986159,0.42163143,2482.6,2482.2,0.55]
[1724823986369,0.42163143,2482.6,2482.3,4.776506]
[1724823986527,4.02715,2483.2,2482.4,3.4516]
[1724823986723,4.02739,2483.0,2482.4,3.4516]
[1724823987096,4.02771,2482.8,2482.4,3.4516]
[1724823987223,4.02771,2482.8,2482.4,3.8715636]
[1724823987428,4.02739,2483.0,2482.4,3.8715636]
[1724823987429,8.05493,2483.0,2482.4,3.8715636]
[1724823989651,4.02739,2483.0,2482.4,3.8715636]
[1724823990039,0.42160733,2483.1,2482.5,7.07408]
[1724823990225,0.42160733,2483.1,2482.6,0.55]
[1724823991177,4.02651,2483.6,2482.7,7.09502317]
[1724823991504,0.42158101,2483.7,2483.2,3.0459]
[1724823991662,0.42158101,2483.7,2483.3,0.55]
[1724823991981,0.42158101,2483.7,2483.3,1.312312]
[1724823992838,0.42158101,2483.7,2483.3,5.339182]
[1724823993479,0.42158101,2483.7,2483.4,4.02672]
[1724823993681,0.42158101,2483.7,2483.5,3.3575]
[1724823993974,4.02552,2484.2,2483.5,3.3575]
[1724823994136,4.44713337,2484.2,2483.6,0.738422]
[1724823994339,4.44713337,2484.2,2483.7,0.55]
[1724823995854,4.44713337,2484.2,2483.4,6.9667]
[1724823995855,4.026,2483.9,2483.4,6.9667]
[1724823996166,4.02621,2483.8,2483.4,6.9667]
[1724823996370,4.02645,2483.6,2483.2,3.0612]
[1724823997255,4.02614,2483.8,2483.2,3.0612]
[1724823997547,8.05234,2483.8,2483.2,3.0612]
[1724823998048,4.02625,2483.7,2483.3,0.55]
[1724823998797,4.02642,2483.6,2483.3,0.55]
[1724824002136,4.02657,2483.5,2483.3,0.55]
[1724824002301,4.02642,2483.6,2483.2,3.0612]
[1724824003089,8.05293,2483.6,2483.2,3.0612]
[1724824003901,8.05295,2483.6,2483.2,3.0612]
[1724824004111,4.02642,2483.6,2483.2,3.0612]
[1724824004633,8.05294,2483.6,2483.2,3.0612]
[1724824004906,8.05296,2483.6,2483.2,3.0612]
[1724824005476,4.02659,2483.5,2483.2,3.0612]
[1724824007292,4.02675,2483.4,2482.9,9.8904]
[1724824007481,4.02675,2483.4,2483.0,0.55]
[1724824007680,0.10066211,2483.5,2482.9,2.9237]
[1724824007882,4.02737,2483.1,2482.5,2.9237]
[1724824008124,4.02737,2483.1,2482.6,0.695197]
[1724824008316,4.02701,2483.3,2482.7,2.9692]
[1724824008494,4.02675,2483.4,2482.7,6.99704]
[1724824008836,4.02675,2483.4,2482.7,8.57398602]
[1724824009525,4.02675,2483.4,2482.7,12.60174602]
[1724824009722,4.02716,2483.2,2482.8,0.55]
[1724824009922,4.0275,2483.0,2482.3,3.0987]
[1724824010227,4.0275,2483.0,2482.4,0.80775432]
[1724824010591,4.0275,2483.0,2482.3,7.12719]
[1724824011415,4.0275,2483.0,2482.4,0.55]
[1724824011619,8.05498,2483.0,2482.4,0.55]
[1724824012128,8.05495,2483.0,2482.4,0.55]
[1724824012432,4.02747,2483.0,2482.4,0.55]
[1724824012633,8.05431,2483.2,2482.5,0.767711]
[1724824012931,8.05431,2483.2,2482.7,3.0806]
[1724824013087,4.02714,2483.2,2482.8,0.55]
[1724824013294,8.05493,2483.0,2482.8,0.55]
[1724824013499,4.02741,2483.0,2482.4,3.0806]
[1724824013742,4.02797,2482.7,2482.4,3.0806]
[1724824014350,4.02761,2482.9,2482.5,0.30806]
[1724824014519,4.0273,2483.1,2482.5,0.30806]
[1724824015119,4.02699,2483.3,2482.6,0.55]
[1724824015337,4.02699,2483.3,2482.6,4.57799]
[1724824015645,4.02707,2483.2,2482.7,3.900921]
[1724824015809,4.02707,2483.2,2482.8,0.55]
[1724824016720,4.02725,2483.1,2482.8,0.55]
[1724824016930,4.02725,2483.1,2482.5,7.27476]
[1724824017255,4.02773,2482.8,2482.6,0.727476]
[1724824017436,4.02773,2482.8,2482.5,7.27476]
[1724824018206,4.0277,2482.9,2482.5,7.27476]
[1724824018605,4.0277,2482.9,2482.6,0.55]
[1724824019030,8.05533,2482.9,2482.6,0.55]
[1724824019244,3.1109,2483.1,2482.6,0.55]
[1724824019541,4.02821,2482.5,2482.2,19.3867]
[1724824019748,8.05649,2482.5,2482.1,3.1219]
[1724824019929,4.02821,2482.5,2482.1,3.1219]
[1724824020644,4.02821,2482.5,2481.9,6.9667]
[1724824020805,4.02821,2482.5,2481.7,2.8338]
[1724824020806,4.02893,2482.1,2481.7,2.8338]
[1724824021015,4.02869,2482.2,2481.6,6.9667]
[1724824021016,4.02901,2482.0,2481.6,6.9667]
[1724824021244,4.02901,2482.0,2481.6,7.94675]
[1724824021645,8.0575,2482.2,2481.6,7.94675]
[1724824021943,4.02842,2482.4,2481.7,6.90558]
[1724824022162,4.0282,2482.5,2481.8,4.02929]
[1724824022443,4.0282,2482.5,2481.9,4.19469482]
[1724824022750,4.0282,2482.5,2481.9,4.74469482]
[1724824023041,4.02836,2482.4,2481.9,4.74469482]
[1724824023546,4.02836,2482.4,2481.9,0.55]
[1724824023745,4.02869,2482.2,2481.9,0.55]
[1724824023917,4.12861579,2482.7,2481.9,0.55]
[1724824023918,4.029,2482.0,2481.9,0.55]
[1724824024123,4.029,2482.0,2481.7,0.55]
[1724824024324,4.029,2482.0,2481.7,1.61182]
[1724824024555,4.029,2482.0,2481.7,1.06182]
[1724824024556,4.02929,2481.9,2481.7,1.06182]
[1724824024710,4.029,2482.0,2481.5,3.1015]
[1724824025436,4.02929,2481.9,2481.5,3.1015]
[1724824025747,4.029,2482.0,2481.6,0.31015]
[1724824026450,4.02917,2481.9,2481.6,0.31015]
[1724824026613,4.02917,2481.9,2481.7,0.55]
[1724824026814,4.02933,2481.8,2481.7,0.55]
[1724824027037,4.02933,2481.8,2481.5,3.1015]
[1724824027232,4.02933,2481.8,2481.6,0.86015]
[1724824028149,4.029,2482.0,2481.6,0.86015]
[1724824028945,4.02926,2481.9,2481.6,0.86015]
[1724824029349,4.029,2482.0,2481.6,0.86015]
[1724824029549,4.02884,2482.1,2481.6,0.86015]
[1724824029755,4.02884,2482.1,2481.7,0.396165]
[1724824029961,4.02884,2482.1,2481.8,0.55]
[1724824030171,4.02902,2482.0,2481.8,0.55]
[1724824031969,8.05889,2481.8,2481.3,6.9667]
[1724824032163,4.02949,2481.7,2481.3,6.9667]
[1724824032361,4.02949,2481.7,2481.4,0.55]
[1724824033361,4.02942,2481.8,2481.4,0.55]
[1724824033867,8.05887,2481.8,2481.4,0.55]
[1724824034166,4.02884,2482.1,2481.5,7.22162]
[1724824034330,4.02884,2482.1,2481.6,0.55]
[1724824034531,4.02861,2482.3,2481.7,4.02949]
[1724824034750,4.02861,2482.3,2481.9,3.1919]
[1724824035023,4.02868,2482.2,2481.9,3.1919]
[1724824036262,4.02887,2482.1,2481.9,3.1919]
[1724824037437,8.05727,2482.3,2481.9,3.1919]
[1724824038430,4.02872,2482.2,2481.9,3.1919]
[1724824038828,4.02887,2482.1,2481.6,3.6175]
[1724824039267,8.0578,2482.1,2481.6,3.6175]
[1724824039465,4.02887,2482.1,2481.6,3.6175]
[1724824039819,8.05786,2482.1,2481.6,3.6175]
[1724824040116,4.02887,2482.1,2481.6,3.6175]
[1724824040266,4.02887,2482.1,2481.7,0.76472]
[1724824040464,4.02887,2482.1,2481.8,0.55]
[1724824042591,8.05781,2482.1,2481.8,0.55]
[1724824043097,8.0578,2482.1,2481.8,0.55]
[1724824043866,4.02887,2482.1,2481.8,0.55]
[1724824045602,0.42161127,2482.4,2481.9,2.9301]
[1724824045810,0.42161127,2482.4,2482.0,0.55]
[1724824046119,0.42161127,2482.4,2482.0,4.57897]
[1724824046263,0.42161127,2482.4,2482.2,4.02866]
[1724824046460,0.42161127,2482.4,2482.1,2.9888]
[1724824046461,0.42161127,2482.4,2482.3,1.251746]
[1724824046666,0.42161127,2482.4,2482.3,0.55]
[1724824046978,0.42161127,2482.4,2482.2,4.57867]
[1724824047492,0.42161127,2482.4,2482.2,4.57859]
[1724824047691,4.02765,2482.9,2482.3,3.1856]
[1724824047863,4.02765,2482.9,2482.4,1.326419]
[1724824048316,4.0279,2482.7,2482.4,1.326419]
[1724824048690,4.0279,2482.7,2482.4,0.55]
[1724824051185,8.05586,2482.7,2482.4,0.55]
[1724824051388,4.02805,2482.6,2482.4,0.55]
[1724824051833,8.05593,2482.7,2482.4,0.55]
[1724824052033,0.10069168,2482.6,2482.0,2.8762]
[1724824052192,0.10069168,2482.6,2481.6,4.02955]
[1724824052193,4.02855,2482.3,2481.7,2.8762]
[1724824052532,4.02893,2482.1,2481.7,3.566775]
[1724824052892,4.02893,2482.1,2481.7,2.8762]
[1724824053331,8.05788,2482.1,2481.7,2.8762]
[1724824053532,8.05788,2482.1,2481.8,0.55]
[1724824054036,8.05788,2482.1,2481.7,2.8762]
[1724824054037,4.02901,2482.0,2481.7,2.8762]
[1724824054241,4.02893,2482.1,2481.4,6.735869]
[1724824054400,4.02925,2481.9,2481.5,1.77516922]
[1724824055433,4.0291,2482.0,2481.5,1.77516922]
[1724824055638,4.02933,2481.8,2481.6,0.55]
[1724824057492,4.02965,2481.7,2481.3,10.1042]
[1724824057698,4.02998,2481.4,2481.3,3.1375]
[1724824058121,4.02998,2481.4,2481.0,3.1404]
[1724824058339,4.02998,2481.4,2481.0,4.280555]
[1724824059049,4.02998,2481.4,2481.1,0.55]
[1724824062354,4.02973,2481.6,2481.2,0.03543383]
[1724824062355,8.05952,2481.6,2481.2,0.03543383]
[1724824062647,4.02973,2481.6,2481.2,0.03543383]
[1724824062942,4.02992,2481.5,2481.2,0.03543383]
[1724824064320,0.42157305,2481.8,2481.3,3.1095]
[1724824064523,0.42157305,2481.8,2481.4,4.57997]
[1724824064747,4.02875,2482.2,2481.6,4.02965]
[1724824064748,4.02885,2482.1,2481.6,4.02965]
[1724824064941,4.02885,2482.1,2481.7,0.952965]
[1724824065550,4.02885,2482.1,2481.8,0.03652626]
[1724824065743,4.02885,2482.1,2481.7,0.952965]
[1724824065963,4.02885,2482.1,2481.9,0.03652626]
[1724824066117,4.02885,2482.1,2481.7,0.952965]
[1724824066453,4.02885,2482.1,2482.0,0.03616203]
[1724824066753,4.02885,2482.1,2481.7,0.952965]
[1724824066941,4.02885,2482.1,2482.0,0.03597367]
[1724824067128,4.02885,2482.1,2481.7,0.952965]
[1724824067329,4.02885,2482.1,2482.0,0.03597367]
[1724824067651,4.02885,2482.1,2481.7,0.952965]
[1724824067816,4.02885,2482.1,2482.0,0.03594856]
[1724824068016,4.02885,2482.1,2481.7,0.952965]
[1724824068837,4.02885,2482.1,2481.8,0.03594856]
[1724824069120,4.02885,2482.1,2481.7,0.952965]
[1724824069343,4.02885,2482.1,2481.9,0.03594856]
[1724824069519,4.02885,2482.1,2481.7,0.55]
[1724824069723,4.02885,2482.1,2482.0,0.03594856]
[1724824070270,4.02903,2482.0,2481.5,0.55]
[1724824070554,4.02903,2482.0,2481.6,0.76598768]
[1724824070751,4.02903,2482.0,2481.7,0.55]
[1724824071068,8.05813,2482.0,2481.7,0.55]
[1724824071215,4.0291,2482.0,2481.3,3.1095]
[1724824071649,4.0291,2482.0,2481.4,0.55]
[1724824071855,4.57137577,2482.2,2481.2,4.03014]
[1724824071856,4.02962,2481.7,2481.2,4.03014]
[1724824072165,8.05987,2481.5,2481.0,2.9752]
[1724824072370,8.05987,2481.5,2481.0,4.81597]
[1724824072371,4.02991,2481.5,2481.0,4.81597]
[1724824073014,4.0296,2481.7,2481.1,4.03045]
[1724824073221,4.0296,2481.7,2481.2,0.884642]
[1724824073526,4.0296,2481.7,2481.2,4.914852]
[1724824073725,8.05919,2481.7,2481.2,0.884642]
[1724824073926,4.02959,2481.7,2481.3,0.55]
[1724824074866,8.05789,2482.1,2481.5,4.02978]
[1724824075027,4.02893,2482.1,2481.6,0.55]
[1724824075760,4.45022678,2482.2,2481.7,4.02949]
[1724824075955,4.45022678,2482.2,2481.8,0.55]
[1724824079969,0.42152678,2482.2,2481.8,3.6999]
[1724824080165,4.45020678,2482.2,2481.8,3.6999]
[1724824081086,4.02885,2482.1,2481.8,3.6999]
[1724824081259,4.02904,2482.0,2481.8,0.55]
[1724824081569,4.02904,2482.0,2481.6,0.55]
[1724824081960,4.02904,2482.0,2481.1,2.9565]
[1724824081961,4.02978,2481.6,2481.1,2.9565]
[1724824082155,4.02978,2481.6,2481.1,6.98696]
[1724824082883,4.02978,2481.6,2481.1,11.01734]
[1724824083231,4.02942,2481.8,2481.1,6.98685]
[1724824083434,4.02942,2481.8,2481.3,4.03005]
[1724824083736,0.42156932,2481.9,2481.3,4.03005]
[1724824083932,4.02941,2481.8,2481.3,4.03005]
[1724824084267,4.02949,2481.7,2481.2,5.13382732]
[1724824084480,4.02975,2481.6,2481.3,0.55]
[1724824084637,4.02982,2481.5,2481.3,0.55]